{"text_format":"1","workbook":"xlsx","n_sheets":3,"sheets":["Анкета","Согласие","Расчет"],"not_rendered":{"charts":0,"images":3,"macros":1,"external_links":0,"defined_names":2,"comments":0,"pivot_tables":0},"unopened":[],"bounds":{"document_bytes":16777216,"sheet_cells":100000,"rows_first":2000,"rows_last":500,"rows_between":2000,"halvings":0,"cell_chars":16384,"cell_head_chars":4096},"cells_cut":0,"cells_raw":0,"read":"whole","date_system":"1900"}

{"sheet":"Анкета","index":0,"n_rows":94,"n_cols":10,"rows_kept":94,"cut":false,"hidden":false,"merged":[[23,3,23,6],[24,3,24,6],[46,2,46,4],[47,2,47,4],[1,0,1,1],[1,2,1,6],[8,2,8,6],[18,0,19,1],[20,2,21,6],[2,2,2,3],[13,5,13,6],[16,5,16,6],[17,5,17,6],[16,0,17,0],[16,1,17,1],[18,5,18,6],[70,3,73,6],[31,5,31,6],[33,2,34,6],[40,2,40,6],[72,7,99,8],[54,2,54,3],[51,2,51,3],[44,2,44,3],[53,2,53,3],[48,2,48,4],[49,2,49,4],[50,2,50,4],[50,0,50,1],[32,0,33,1],[52,2,52,3],[29,5,29,6],[28,5,28,6],[42,2,43,2],[42,3,43,6],[45,0,45,1],[30,5,30,6]]}
["Анкета №","01","Торговая точка","ТТ Полоцк",null,null,{"$f":"CONCATENATE(\"Сейчас \",TEXT(NOW(),\"ДД-МММ-ГГГГ чч:мм\"))","v":"Сейчас 10-окт-2016 11:04"},null,{"$f":"EOMONTH(J1,0)+1","v":"2016-11-01"},{"$f":"TODAY()","v":"2016-10-10"}]
["Персональная  информация",null,"Прочая  информация"]
[]
["Фамилия","Пупкин","Чистый доход",null,100]
["Имя","Валентин","Чистый доход супруга(и)"]
["Отчество","Константинович","Другие доходы",null,100]
["Пол","Мужской","Другие доходы супруга(и)"]
["Национальность","Русский"]
["Гражданство","Беларусь","Контактное лицо"]
["Документ","Паспорт"]
["Серия, номер","CM 230639","Фамилия","Борисенко"]
["Дата выдачи","2013-03-03","Имя","Анатолий"]
["Кем выдан","Гомельским РОВД Гомельской области","Отчество","Евгеньевич"]
["Личный номер","VF003121356652","Область","Гродненская","Район ","Хто знает какой"]
["Дата рождения","1998-02-01","Город/Село","Новогрудки"]
["E-mail","mail@mail.ru","Улица","Косарева"]
["Привлекались ли Вы к уголовной ответственности  ","Нет","№ дома/корпус",18,"№ квартиры",18]
[null,null,"Кем приходится","Отец","Мобильный телефон ",80291575774]
["Адрес прописки",null,null,null,"Телефон гор.",80177556697]
[]
["Индекс",null,"Информация о месте работы заемщика"]
["Область","Могилёвская"]
["Район","Советский"]
["Город/Село","Могилев","Название организации","ООО \"Жили были строй контора\""]
["Улица","Красная","Должность","Ведущий специалист во всех облостях и районах всего"]
["№ дома/корпус","17А","Категория","Рабочий"]
["№ квартиры",42,"Тип контракта","Договор"]
["Телефон",80173926869,"Нанят с","2012-12-23"]
["Мобильный телефон",80291575783,"Телефон бухг.",80233778812,"Город/село","Гомель"]
["Дата регистрации","2015-05-02","Мобильный телефон",80291575776,"Улица","Краснознаменная"]
["Зарегистрированы",null,"Телефон отд. Кадров",80291575725,"№ дома",12]
[null,null,null,null,"№ офиса",6666]
["Действующий адрес/Местонахождение предмета лизинга"]
[null,null,"Действующие  рассрочки/кредиты"]
["Индекс"]
["Область","Могилёвская"]
["район","Советский","Тип",null,"Потребительский, нужны варианты для списка"]
["Город/Село","Могилев","Количество",null,15]
["Улица","Красная","Ежемесячный взнос",null,250.5]
["№ дома/корпус","17А","Банк/магазин",null,"Хоум кредит Лизинг впридачу"]
["№ квартиры",42,"Информация о товаре"]
["Телефон",80173926869]
["Мобильный телефон",80291575783,"Наименование поставщика предмета лизинга","ООО \"Тотлер Плюc\", УНП 690711029, ОКПО 297125146000,220019 Минская обл., Минский р-н, Щомыслицкий с/с 3-й пер. Монтажников, 3-16, пом.11, р/с 3012113690018, ЗАО \"Бантк ВТБ\" (Беларусь), 220007, г. Минск,ул. Московская,14 ,Код 9МФО) 153001108\n"]
["Проживаете:","C родителями, Собственник, арендую"]
[null,null,"Общая стоимость ",null,null,null,{"$f":"SUM(G47:G51)","v":600}]
["Информация о семье",null,"Наименование товара(ов)",null,null,"кол-во","Цена с НДС, руб"]
[null,null,"Телефон",null,null,2,600]
["Семейное положение ","женат/замужен"]
["Количество  иждивенцев",0]
[]
["Информация о супруге"]
[null,null,"Доставка ",null,"Самовывоз"]
["Фамилия Имя Отчество","Красельникова Екатерина Васильевна","Ежемесячный платёж",null,{"$f":"Расчет!E11","v":48.95}]
["Дата рождения","1997-11-01","Срок лизинга (месяцев)",null,24," (Двадцать четыре)"]
["Мобильный телефон",80291575781,"Дата первого платежа",null,"2016-04-29"]
["Место работы","ЧТУП \"Такой конторы не существует вовсе\"","Оплата каждый месяц не позднее (числа)"]
[]
[null,null,"СОГЛАСИЕ "]
[null,null,"лизингополучателя"]
[{"$f":"CONCATENATE(\"Я, \",B4,\" \",B5,\" \",B6,\", согласен на:\")","v":"Я, Пупкин Валентин Константинович, согласен на:"}]
[]
[]
[]
[]
[]
[]
[]
[]
[]
["Дата: ","2016-03-29",null,null,null,null,{"$f":"CONCATENATE(Анкета!B4,\" \",MID(Анкета!B5,1,1),\". \",MID(Анкета!B6,1,1),\".\")","v":"Пупкин В. К."}]
[null,null,null,{"$f":"CONCATENATE(Анкета!B10,\": \",\"Личный номер: \",Анкета!B14,\", Серия и номер: \",Анкета!B11,\", Выданный: \",TEXT(Анкета!B12,\"ДД.ММ.ГГГГ\"),\"г., \",Анкета!B13,\"; Адрес по прописке: \",Анкета!B22,\" область, \",Анкета!B23,\" район, \",Анкета!B24,\", ул. \",Анкета!B25,\", д.\",Анкета!B26,\", кв.\",Анкета!B27)","v":"Паспорт: Личный номер: VF003121356652, Серия и номер: CM 230639, Выданный: 03.03.2013г., Гомельским РОВД Гомельской области; Адрес по прописке: Могилёвская область, Советский район, Могилев, ул. Красная, д.17А, кв.42"}]
[]
[]
[]
["Составил:","Дзен Д.С."]
["Доверенность","022 от 03.10.2016"]
[]
[]
[]
[]
[]
[]
[]
[]
[]
[]
[]
[]
[]
[]
[]
[null,null,null,{"$f":"EDATE(B70,1)","v":"2016-04-29"}]
[]
["ТТ Тотлер",151,"г.Минск"]

{"sheet":"Согласие","index":1,"n_rows":15,"n_cols":3,"rows_kept":15,"cut":false,"hidden":false,"merged":[[0,0,0,2],[1,0,1,2]]}
["СОГЛАСИЕ"]
["на предоставление кредитного отчета"]
[]
["Сведения о субъекте кредитной истории <*>","Действующие","Прежние"]
["Фамилия",{"$f":"Анкета!B4","v":"Пупкин"},"-"]
["Собственное имя",{"$f":"Анкета!B5","v":"Валентин"},"-"]
["Отчество (если таковое имеется)",{"$f":"Анкета!B6","v":"Константинович"},"-"]
["Гражданство",{"$f":"Анкета!B9","v":"Беларусь"},"-"]
["Пол",{"$f":"Анкета!B7","v":"Мужской"},"X"]
["Идентификационный номер (для гражданина Республики Беларусь, иностранного гражданина или лица без гражданства, имеющих вид на жительство в Республике Беларусь)",{"$f":"Анкета!B14","v":"VF003121356652"},"-"]
["Число, месяц, год рождения",{"$f":"Анкета!B15","v":"1998-02-01"},"-"]
["Сведения о документе, удостоверяющем личность (для иностранного гражданина или лица без гражданства, не имеющих вида на жительство в Республике Беларусь):","X","X"]
["наименование","-"]
["дата выдачи","-"]
["серия и номер","-"]

{"sheet":"Расчет","index":2,"n_rows":16,"n_cols":5,"rows_kept":16,"cut":false,"hidden":false,"merged":[[1,3,1,4]]}
[]
[null,null,null,"24 месяца"]
[]
[null,null,null,"сумма",{"$f":"Анкета!G45","v":600}]
[null,null,null,"аванс",0]
[null,null,null,"Итого",{"$f":"E4-E5","v":600}]
[]
[null,null,null,"Ставка",0.751]
[null,null,null,"срок, мес.",24]
[]
[null,null,null,"Платеж ежемесячный",{"$f":"PMT(E8/12,E9,-E6)","v":48.95}]
[]
[null,null,null,"Всего за 18 месяцев:",{"$f":"E11*E9","v":1174.8}]
[]
[null,null,null,"Удорожание всего",{"$f":"(E13/E6-1)*100","v":95.8}]
[null,null,null,"Удорожание в месяц",{"$f":"E15/E9","v":3.99}]